[Event "*** Titled Tuesday Blitz"]
[Site "Chess.com"]
[Date "2021.03.02"]
[Round "9"]
[White "FredyMatsuura"]
[Black "volunteers1998"]
[Result "1-0"]
[WhiteElo "2326"]
[BlackElo "2172"]
[TimeControl "180+1"]
[EndTime "11:48:27 PST"]
[Termination "FredyMatsuura won on time"]

1. d4 {[%clk 0:03:00.9]} 1... f5 {[%clk 0:02:58.8]} 2. g3 {[%clk 0:02:56.8]}
2... g6 {[%clk 0:02:56.9]} 3. Bg2 {[%clk 0:02:57]} 3... Nf6 {[%clk 0:02:54.9]}
4. h4 {[%clk 0:02:53.7]} 4... Bg7 {[%clk 0:02:54.5]} 5. Nh3 {[%clk 0:02:54]}
5... O-O {[%clk 0:02:50.8]} 6. Nf4 {[%clk 0:02:54.4]} 6... d6 {[%clk 0:02:46.1]}
7. d5 {[%clk 0:02:48.4]} 7... Qe8 {[%clk 0:02:40.1]} 8. h5 {[%clk 0:02:45.1]}
8... g5 {[%clk 0:02:29.4]} 9. h6 {[%clk 0:02:43.8]} 9... Bh8 {[%clk 0:02:27.7]}
10. Nh3 {[%clk 0:02:32.9]} 10... g4 {[%clk 0:02:28.1]} 11. Nf4 {[%clk
0:02:31.4]} 11... e5 {[%clk 0:02:17.6]} 12. dxe6 {[%clk 0:02:29.8]} 12... Nc6
{[%clk 0:02:16.2]} 13. Nc3 {[%clk 0:02:21.8]} 13... Bxe6 {[%clk 0:02:13.1]} 14.
Nxe6 {[%clk 0:02:21.4]} 14... Qxe6 {[%clk 0:02:10.4]} 15. Nd5 {[%clk 0:02:20.5]}
15... Qd7 {[%clk 0:02:02.3]} 16. Qd2 {[%clk 0:02:13.7]} 16... Rae8 {[%clk
0:01:55.1]} 17. Qg5+ {[%clk 0:02:03.7]} 17... Kf7 {[%clk 0:01:50.3]} 18. Bd2
{[%clk 0:01:43.7]} 18... Rg8 {[%clk 0:01:40.6]} 19. Qf4 {[%clk 0:01:42]} 19...
Ne5 {[%clk 0:01:29.8]} 20. O-O-O {[%clk 0:01:36]} 20... c6 {[%clk 0:01:26.5]}
21. Ne3 {[%clk 0:01:35.2]} 21... d5 {[%clk 0:01:16.1]} 22. Qxf5 {[%clk
0:01:29.5]} 22... Qxf5 {[%clk 0:01:12.8]} 23. Nxf5 {[%clk 0:01:29]} 23... Kg6
{[%clk 0:01:06.7]} 24. Nd6 {[%clk 0:01:15.7]} 24... Re7 {[%clk 0:01:03.2]} 25.
Bb4 {[%clk 0:00:59.3]} 25... Rd7 {[%clk 0:00:58.6]} 26. e4 {[%clk 0:00:56.8]}
26... dxe4 {[%clk 0:00:46.1]} 27. Nxe4 {[%clk 0:00:54.8]} 27... Rxd1+ {[%clk
0:00:43.1]} 28. Kxd1 {[%clk 0:00:53.3]} 28... Rd8+ {[%clk 0:00:36.7]} 29. Kc1
{[%clk 0:00:51.3]} 29... Nf3 {[%clk 0:00:31.7]} 30. Nxf6 {[%clk 0:00:44.8]}
30... Bxf6 {[%clk 0:00:30.3]} 31. Bxf3 {[%clk 0:00:37.1]} 31... gxf3 {[%clk
0:00:26.6]} 32. Bd2 {[%clk 0:00:35.6]} 32... Bxb2+ {[%clk 0:00:22.1]} 33. Kxb2
{[%clk 0:00:35.6]} 33... Rxd2 {[%clk 0:00:21.8]} 34. Rh2 {[%clk 0:00:28.3]}
34... Re2 {[%clk 0:00:18.5]} 35. Kc3 {[%clk 0:00:28.5]} 35... c5 {[%clk
0:00:16.1]} 36. a4 {[%clk 0:00:27.2]} 36... a6 {[%clk 0:00:15.2]} 37. a5 {[%clk
0:00:26.6]} 37... Kf6 {[%clk 0:00:14.6]} 38. Kd3 {[%clk 0:00:25.2]} 38... Ke6
{[%clk 0:00:13.4]} 39. c3 {[%clk 0:00:25.4]} 39... Kd6 {[%clk 0:00:12.7]} 40.
Kc4 {[%clk 0:00:24.6]} 40... Kc6 {[%clk 0:00:11.8]} 41. Rh5 {[%clk 0:00:23]}
41... b5+ {[%clk 0:00:10.8]} 42. axb6 {[%clk 0:00:22.6]} 42... Kxb6 {[%clk
0:00:10.6]} 43. Rf5 {[%clk 0:00:21.7]} 43... Rxf2 {[%clk 0:00:09.8]} 44. Rf6+
{[%clk 0:00:22]} 44... Kc7 {[%clk 0:00:08.6]} 45. Rf7+ {[%clk 0:00:22.1]} 45...
Kd6 {[%clk 0:00:07.2]} 46. Rxh7 {[%clk 0:00:22]} 46... Rg2 {[%clk 0:00:07]} 47.
Rf7 {[%clk 0:00:20.7]} 47... Rxg3 {[%clk 0:00:06.3]} 48. Rf6+ {[%clk 0:00:20.2]}
48... Ke7 {[%clk 0:00:04.4]} 49. Rf4 {[%clk 0:00:18.7]} 49... Rh3 {[%clk
0:00:03.4]} 50. Kxc5 {[%clk 0:00:16]} 50... Rxh6 {[%clk 0:00:03.2]} 51. Rxf3
{[%clk 0:00:15.8]} 51... Kd7 {[%clk 0:00:01.7]} 52. Rf7+ {[%clk 0:00:14.9]}
52... Kc8 {[%clk 0:00:01.7]} 53. c4 {[%clk 0:00:14.3]} 53... Rh5+ {[%clk
0:00:01.9]} 54. Kc6 {[%clk 0:00:13.8]} 54... Rh6+ {[%clk 0:00:02.4]} 55. Kc5
{[%clk 0:00:13.8]} 55... Rh5+ {[%clk 0:00:03]} 56. Kb6 {[%clk 0:00:13.8]} 56...
Rh6+ {[%clk 0:00:03.4]} 57. Ka5 {[%clk 0:00:13.6]} 57... Rh5+ {[%clk 0:00:03]}
58. Kb4 {[%clk 0:00:13.7]} 58... Rc5 {[%clk 0:00:03.6]} 59. Kxc5 {[%clk
0:00:13.2]} 59... a5 {[%clk 0:00:02.7]} 60. Kc6 {[%clk 0:00:13.1]} 1-0

[Event "*** Titled Tuesday Blitz"]
[Site "Chess.com"]
[Date "2021.03.02"]
[Round "9"]
[White "FlySooHigh"]
[Black "VitaRasik"]
[Result "1-0"]
[WhiteElo "2695"]
[BlackElo "2543"]
[TimeControl "180+1"]
[EndTime "11:48:28 PST"]
[Termination "FlySooHigh won by checkmate"]

1. e4 {[%clk 0:03:00.9]} 1... d6 {[%clk 0:03:00.2]} 2. d4 {[%clk 0:03:00.2]}
2... g6 {[%clk 0:03:00.6]} 3. Nc3 {[%clk 0:03:00.7]} 3... Bg7 {[%clk 0:03:00.9]}
4. Bg5 {[%clk 0:02:56]} 4... Nd7 {[%clk 0:03:00]} 5. Qd2 {[%clk 0:02:55.4]} 5...
c5 {[%clk 0:03:00.1]} 6. Nf3 {[%clk 0:02:50.2]} 6... cxd4 {[%clk 0:02:58.6]} 7.
Nxd4 {[%clk 0:02:50]} 7... a6 {[%clk 0:02:56.1]} 8. O-O-O {[%clk 0:02:45.6]}
8... Ngf6 {[%clk 0:02:43.2]} 9. Bh6 {[%clk 0:02:43.1]} 9... O-O {[%clk 0:02:43]}
10. f3 {[%clk 0:02:37]} 10... Qa5 {[%clk 0:02:02.4]} 11. Kb1 {[%clk 0:02:28.7]}
11... Bxh6 {[%clk 0:01:27]} 12. Qxh6 {[%clk 0:02:27.2]} 12... Qh5 {[%clk
0:01:20.3]} 13. Qd2 {[%clk 0:02:22.5]} 13... Ne5 {[%clk 0:01:16.2]} 14. h4
{[%clk 0:02:21.3]} 14... Nc6 {[%clk 0:01:01]} 15. g4 {[%clk 0:02:16.2]} 15...
Qe5 {[%clk 0:01:00.8]} 16. Nb3 {[%clk 0:01:35]} 16... Be6 {[%clk 0:00:50.8]} 17.
h5 {[%clk 0:01:26.3]} 17... Bxb3 {[%clk 0:00:44.3]} 18. axb3 {[%clk 0:01:24.7]}
18... g5 {[%clk 0:00:41]} 19. h6 {[%clk 0:01:24.6]} 19... e6 {[%clk 0:00:23.7]}
20. Ne2 {[%clk 0:01:02]} 20... Rfd8 {[%clk 0:00:23]} 21. f4 {[%clk 0:00:30.1]}
21... Qxe4 {[%clk 0:00:19]} 22. fxg5 {[%clk 0:00:27.3]} 22... Nxg4 {[%clk
0:00:19.2]} 23. Ng3 {[%clk 0:00:23.5]} 23... Qe3 {[%clk 0:00:18.3]} 24. Nh5
{[%clk 0:00:18.3]} 24... Qxd2 {[%clk 0:00:18.4]} 25. Rxd2 {[%clk 0:00:19.2]}
25... Nce5 {[%clk 0:00:18.5]} 26. Bh3 {[%clk 0:00:17.8]} 26... Ne3 {[%clk
0:00:18.2]} 27. Nf6+ {[%clk 0:00:17]} 27... Kh8 {[%clk 0:00:17.9]} 28. Re1
{[%clk 0:00:17.5]} 28... Nd5 {[%clk 0:00:18]} 29. Nxd5 {[%clk 0:00:16.6]} 29...
exd5 {[%clk 0:00:17.5]} 30. Rxd5 {[%clk 0:00:17.5]} 30... Nf3 {[%clk 0:00:12.5]}
31. Re7 {[%clk 0:00:15.4]} 31... Ne5 {[%clk 0:00:11.5]} 32. Rxb7 {[%clk
0:00:14.9]} 32... a5 {[%clk 0:00:10.3]} 33. Bf5 {[%clk 0:00:11.6]} 33... Kg8
{[%clk 0:00:10.3]} 34. c3 {[%clk 0:00:07.6]} 34... Ra6 {[%clk 0:00:09.4]} 35.
Rdb5 {[%clk 0:00:06.3]} 35... a4 {[%clk 0:00:09.1]} 36. Rb8 {[%clk 0:00:06.1]}
36... Ra8 {[%clk 0:00:06.6]} 37. Rxd8+ {[%clk 0:00:05.9]} 37... Rxd8 {[%clk
0:00:06.8]} 38. bxa4 {[%clk 0:00:06.8]} 38... Nf3 {[%clk 0:00:06.9]} 39. Be4
{[%clk 0:00:05.4]} 39... Nd2+ {[%clk 0:00:06.7]} 40. Kc2 {[%clk 0:00:05.9]}
40... Nxe4 {[%clk 0:00:07.3]} 41. b4 {[%clk 0:00:06.3]} 41... Nc5 {[%clk
0:00:07.8]} 42. bxc5 {[%clk 0:00:06]} 42... d5 {[%clk 0:00:08.5]} 43. Kd3 {[%clk
0:00:05.7]} 43... f6 {[%clk 0:00:07.8]} 44. gxf6 {[%clk 0:00:05.2]} 44... Kf7
{[%clk 0:00:08.2]} 45. Rb7+ {[%clk 0:00:05.3]} 45... Kxf6 {[%clk 0:00:07.9]} 46.
Rxh7 {[%clk 0:00:05.6]} 46... Kg6 {[%clk 0:00:08.2]} 47. Rc7 {[%clk 0:00:04.9]}
47... Kxh6 {[%clk 0:00:08.9]} 48. Kd4 {[%clk 0:00:05.3]} 48... Kg5 {[%clk
0:00:09.5]} 49. a5 {[%clk 0:00:04.8]} 49... Kf5 {[%clk 0:00:10.1]} 50. a6 {[%clk
0:00:05.1]} 50... Ke6 {[%clk 0:00:10.8]} 51. a7 {[%clk 0:00:05.3]} 51... Ra8
{[%clk 0:00:11.4]} 52. Rb7 {[%clk 0:00:04.3]} 52... Kf6 {[%clk 0:00:10.1]} 53.
Kxd5 {[%clk 0:00:04.7]} 53... Kf5 {[%clk 0:00:10.6]} 54. Kc6 {[%clk 0:00:04.9]}
54... Ke4 {[%clk 0:00:10.9]} 55. Rc7 {[%clk 0:00:05.5]} 55... Kd3 {[%clk
0:00:11.1]} 56. Kb7 {[%clk 0:00:06.1]} 56... Re8 {[%clk 0:00:10.7]} 57. a8=Q
{[%clk 0:00:07]} 57... Rxa8 {[%clk 0:00:10.4]} 58. Kxa8 {[%clk 0:00:07.9]} 58...
Kxc3 {[%clk 0:00:10.8]} 59. c6 {[%clk 0:00:07.8]} 59... Kb4 {[%clk 0:00:11.5]}
60. Rc8 {[%clk 0:00:08.2]} 60... Kc5 {[%clk 0:00:12.2]} 61. Kb7 {[%clk
0:00:08.9]} 61... Kd6 {[%clk 0:00:12.4]} 62. c7 {[%clk 0:00:09.8]} 62... Kc5
{[%clk 0:00:12.8]} 63. Rd8 {[%clk 0:00:10.7]} 63... Kb5 {[%clk 0:00:12.3]} 64.
c8=Q {[%clk 0:00:11.6]} 64... Kb4 {[%clk 0:00:12]} 65. Rd4+ {[%clk 0:00:11.5]}
65... Kb3 {[%clk 0:00:11.9]} 66. Qc4+ {[%clk 0:00:11.4]} 66... Kb2 {[%clk
0:00:12.3]} 67. Rd2+ {[%clk 0:00:11.2]} 67... Kb1 {[%clk 0:00:12.6]} 68. Qc2+
{[%clk 0:00:11]} 68... Ka1 {[%clk 0:00:12.8]} 69. Qb2# {[%clk 0:00:11.9]} 1-0

[Event "*** Titled Tuesday Blitz"]
[Site "Chess.com"]
[Date "2021.03.02"]
[Round "9"]
[White "ChessWarrior7197"]
[Black "swisspower96"]
[Result "1-0"]
[WhiteElo "2904"]
[BlackElo "2675"]
[TimeControl "180+1"]
[EndTime "11:48:29 PST"]
[Termination "ChessWarrior7197 won by resignation"]

1. Nf3 {[%clk 0:03:00.9]} 1... d5 {[%clk 0:02:59.7]} 2. g3 {[%clk 0:02:59.5]}
2... Nf6 {[%clk 0:02:59.9]} 3. Bg2 {[%clk 0:02:59.8]} 3... c5 {[%clk 0:03:00.6]}
4. O-O {[%clk 0:02:59.9]} 4... e6 {[%clk 0:03:00.5]} 5. b3 {[%clk 0:02:58.6]}
5... Nc6 {[%clk 0:02:50.6]} 6. Bb2 {[%clk 0:02:59.5]} 6... Be7 {[%clk
0:02:43.1]} 7. c4 {[%clk 0:03:00.4]} 7... d4 {[%clk 0:02:38.3]} 8. e3 {[%clk
0:03:00.9]} 8... e5 {[%clk 0:02:38.6]} 9. exd4 {[%clk 0:03:01.8]} 9... exd4
{[%clk 0:02:39.2]} 10. Re1 {[%clk 0:03:01.4]} 10... O-O {[%clk 0:02:39.5]} 11.
d3 {[%clk 0:02:57.5]} 11... Bd6 {[%clk 0:02:34.8]} 12. a3 {[%clk 0:02:56.8]}
12... a5 {[%clk 0:02:34.5]} 13. Bc1 {[%clk 0:02:56.9]} 13... h6 {[%clk
0:02:34.5]} 14. Ra2 {[%clk 0:02:57.1]} 14... Bf5 {[%clk 0:02:33.4]} 15. h3
{[%clk 0:02:55.2]} 15... Qd7 {[%clk 0:02:27.4]} 16. g4 {[%clk 0:02:52.7]} 16...
Bh7 {[%clk 0:02:23.3]} 17. Rae2 {[%clk 0:02:52]} 17... Ne8 {[%clk 0:02:11.9]}
18. Nh4 {[%clk 0:02:44.9]} 18... Nc7 {[%clk 0:02:02.7]} 19. Be4 {[%clk
0:02:45.2]} 19... Ne6 {[%clk 0:01:58.1]} 20. Nf5 {[%clk 0:02:31.7]} 20... Bf4
{[%clk 0:01:56]} 21. h4 {[%clk 0:02:00.4]} 21... Qc7 {[%clk 0:01:47]} 22. Nd2
{[%clk 0:01:55.9]} 22... Ne5 {[%clk 0:01:21.7]} 23. Bd5 {[%clk 0:01:22.5]} 23...
Nxd3 {[%clk 0:00:45.8]} 24. Rf1 {[%clk 0:01:22]} 24... Rae8 {[%clk 0:00:36.8]}
25. Be4 {[%clk 0:01:11.4]} 25... Nxc1 {[%clk 0:00:31.4]} 26. Qxc1 {[%clk
0:01:12.3]} 26... g6 {[%clk 0:00:30.9]} 27. Ng3 {[%clk 0:01:12.7]} 27... Bxg3
{[%clk 0:00:26.7]} 28. fxg3 {[%clk 0:01:13.6]} 28... Qxg3+ {[%clk 0:00:27.1]}
29. Rg2 {[%clk 0:01:14.3]} 29... Qe3+ {[%clk 0:00:25.7]} 30. Kh2 {[%clk
0:01:14.8]} 30... Nf4 {[%clk 0:00:18.1]} 31. Rf3 {[%clk 0:01:09]} 31... Nxg2
{[%clk 0:00:14]} 32. Rxe3 {[%clk 0:01:06.2]} 32... Nxe3 {[%clk 0:00:13.8]} 33.
Qg1 {[%clk 0:01:00]} 33... Kh8 {[%clk 0:00:13.4]} 34. g5 {[%clk 0:00:59.3]}
34... f5 {[%clk 0:00:08.7]} 35. gxf6 {[%clk 0:00:58.2]} 35... Rxf6 {[%clk
0:00:08.2]} 36. Qg3 {[%clk 0:00:54]} 36... Ref8 {[%clk 0:00:07.4]} 37. Kg1
{[%clk 0:00:48.8]} 37... Bg8 {[%clk 0:00:03.2]} 38. Qe5 {[%clk 0:00:47.9]} 38...
Be6 {[%clk 0:00:02.5]} 39. Qxc5 {[%clk 0:00:44.7]} 39... Kg8 {[%clk 0:00:02.9]}
40. Qxd4 {[%clk 0:00:44.4]} 40... Ng4 {[%clk 0:00:02.5]} 41. Bxb7 {[%clk
0:00:42.5]} 41... Bf5 {[%clk 0:00:02]} 42. Bd5+ {[%clk 0:00:42.3]} 42... Kg7
{[%clk 0:00:02.5]} 43. c5 {[%clk 0:00:41.4]} 43... Re8 {[%clk 0:00:02.7]} 44.
Nf3 {[%clk 0:00:38]} 44... Ne3 {[%clk 0:00:01.7]} 45. Bc6 {[%clk 0:00:35.4]}
45... Re7 {[%clk 0:00:01.8]} 46. Qd8 {[%clk 0:00:28.3]} 46... Ref7 {[%clk
0:00:01.7]} 47. Be8 {[%clk 0:00:28.1]} 47... Rf8 {[%clk 0:00:01.7]} 48. Qe7+
{[%clk 0:00:28.5]} 48... Kh8 {[%clk 0:00:02.3]} 49. Ne5 {[%clk 0:00:28.1]} 49...
Re6 {[%clk 0:00:02.2]} 50. Nf7+ {[%clk 0:00:26.1]} 50... Kg7 {[%clk 0:00:02]}
51. Qc7 {[%clk 0:00:19.3]} 51... Rfxe8 {[%clk 0:00:02.6]} 52. Nd6+ {[%clk
0:00:16.1]} 52... R8e7 {[%clk 0:00:02.8]} 53. Qd8 {[%clk 0:00:15.8]} 53... Nd5
{[%clk 0:00:02.4]} 54. Nxf5+ {[%clk 0:00:15.7]} 54... gxf5 {[%clk 0:00:02.9]}
55. Qxd5 {[%clk 0:00:16.6]} 55... Rg6+ {[%clk 0:00:03.3]} 56. Kf2 {[%clk
0:00:16.7]} 56... Re4 {[%clk 0:00:03.8]} 57. c6 {[%clk 0:00:15.6]} 57... Rf4+
{[%clk 0:00:04]} 58. Ke3 {[%clk 0:00:16.2]} 58... Re4+ {[%clk 0:00:04.6]} 59.
Kf3 {[%clk 0:00:16.5]} 59... Rge6 {[%clk 0:00:03.4]} 60. c7 {[%clk 0:00:15.8]}
60... Kf6 {[%clk 0:00:03.1]} 61. Qd8+ {[%clk 0:00:15.1]} 61... Kg6 {[%clk
0:00:03]} 62. Qg8+ {[%clk 0:00:14.8]} 62... Kh5 {[%clk 0:00:02.8]} 63. Qxe6
{[%clk 0:00:13.2]} 63... Rxe6 {[%clk 0:00:02.6]} 64. c8=Q {[%clk 0:00:14.1]} 1-0

[Event "*** Titled Tuesday Blitz"]
[Site "Chess.com"]
[Date "2021.03.02"]
[Round "9"]
[White "Chesspirate_Channel"]
[Black "ShahMatKanal"]
[Result "0-1"]
[WhiteElo "2357"]
[BlackElo "2495"]
[TimeControl "180+1"]
[EndTime "11:48:29 PST"]
[Termination "ShahMatKanal won by resignation"]

1. d4 {[%clk 0:03:00.9]} 1... d5 {[%clk 0:02:59.2]} 2. Nc3 {[%clk 0:03:00.8]}
2... Nf6 {[%clk 0:02:58.4]} 3. Bg5 {[%clk 0:03:00.2]} 3... c6 {[%clk 0:02:54.1]}
4. f3 {[%clk 0:02:58.4]} 4... h6 {[%clk 0:02:50.3]} 5. Bh4 {[%clk 0:02:58.2]}
5... Bf5 {[%clk 0:02:46.1]} 6. Qd2 {[%clk 0:02:55]} 6... Nbd7 {[%clk 0:02:43.2]}
7. O-O-O {[%clk 0:02:49.6]} 7... Qa5 {[%clk 0:02:31.7]} 8. Kb1 {[%clk 0:02:37]}
8... e6 {[%clk 0:02:28.7]} 9. e4 {[%clk 0:02:22.7]} 9... Bh7 {[%clk 0:02:05.3]}
10. Nxd5 {[%clk 0:02:11.1]} 10... Qxd2 {[%clk 0:01:18.3]} 11. Nxf6+ {[%clk
0:02:10.9]} 11... gxf6 {[%clk 0:01:19.2]} 12. Rxd2 {[%clk 0:02:11.6]} 12... f5
{[%clk 0:01:19.2]} 13. e5 {[%clk 0:01:56.3]} 13... h5 {[%clk 0:01:15.9]} 14. f4
{[%clk 0:01:55.7]} 14... Bh6 {[%clk 0:01:14.2]} 15. Ne2 {[%clk 0:01:49.9]} 15...
b5 {[%clk 0:01:01.5]} 16. g3 {[%clk 0:01:44]} 16... Nb6 {[%clk 0:00:59.4]} 17.
Bg2 {[%clk 0:01:19.9]} 17... Rc8 {[%clk 0:00:58.9]} 18. b3 {[%clk 0:01:18.7]}
18... Nd5 {[%clk 0:00:56.9]} 19. c4 {[%clk 0:00:58.1]} 19... bxc4 {[%clk
0:00:53.1]} 20. bxc4 {[%clk 0:00:59]} 20... Ne3 {[%clk 0:00:53.1]} 21. Bf3
{[%clk 0:00:56]} 21... Nxc4 {[%clk 0:00:52.4]} 22. Rc2 {[%clk 0:00:56.1]} 22...
Na3+ {[%clk 0:00:52.6]} 23. Kb2 {[%clk 0:00:53.9]} 23... Nxc2 {[%clk 0:00:53.5]}
24. Kxc2 {[%clk 0:00:54.8]} 24... c5 {[%clk 0:00:38.3]} 25. d5 {[%clk 0:00:52]}
25... exd5 {[%clk 0:00:37.7]} 26. Bxd5 {[%clk 0:00:52.9]} 26... O-O {[%clk
0:00:35.5]} 27. Nc3 {[%clk 0:00:39.3]} 27... Rfe8 {[%clk 0:00:33.3]} 28. Re1
{[%clk 0:00:38.9]} 28... Rb8 {[%clk 0:00:28.9]} 29. Nd1 {[%clk 0:00:25.6]} 29...
Bf8 {[%clk 0:00:28.9]} 30. Ne3 {[%clk 0:00:25.6]} 30... Be7 {[%clk 0:00:29.1]}
31. Bc6 {[%clk 0:00:21]} 31... Rec8 {[%clk 0:00:28.3]} 32. Bxe7 {[%clk
0:00:18.6]} 32... Rxc6 {[%clk 0:00:27.7]} 33. Nd5 {[%clk 0:00:18.9]} 33... Ra6
{[%clk 0:00:25.4]} 34. Ra1 {[%clk 0:00:16.5]} 34... Kg7 {[%clk 0:00:24.6]} 35.
Bf6+ {[%clk 0:00:16.2]} 35... Kh6 {[%clk 0:00:21.6]} 36. a3 {[%clk 0:00:15.7]}
36... Ra4 {[%clk 0:00:19.3]} 37. Kc3 {[%clk 0:00:15.4]} 37... Bg6 {[%clk
0:00:16.4]} 38. Ne7 {[%clk 0:00:15.2]} 38... c4 {[%clk 0:00:12.3]} 39. Nd5
{[%clk 0:00:13.1]} 39... Rb3+ {[%clk 0:00:11.9]} 40. Kd4 {[%clk 0:00:12.9]}
40... Rd3+ {[%clk 0:00:09.9]} 41. Kc5 {[%clk 0:00:11.8]} 41... Ra5+ {[%clk
0:00:09.9]} 42. Kxc4 {[%clk 0:00:11.7]} 42... Raxd5 {[%clk 0:00:10.1]} 43. Rb1
{[%clk 0:00:12.4]} 43... R3d4+ {[%clk 0:00:05.1]} 44. Kc3 {[%clk 0:00:12.6]}
44... Rd3+ {[%clk 0:00:03.9]} 45. Kc4 {[%clk 0:00:13.1]} 45... R5d4+ {[%clk
0:00:04.8]} 46. Kc5 {[%clk 0:00:13.3]} 46... Rd8 {[%clk 0:00:02.8]} 47. Bxd8
{[%clk 0:00:09.1]} 47... Rxd8 {[%clk 0:00:03.7]} 48. Rb7 {[%clk 0:00:09.3]}
48... Rd2 {[%clk 0:00:02.5]} 49. Rxa7 {[%clk 0:00:09]} 49... Rc2+ {[%clk
0:00:02.8]} 50. Kd6 {[%clk 0:00:08.8]} 50... Rxh2 {[%clk 0:00:03.7]} 51. a4
{[%clk 0:00:09.1]} 51... Rd2+ {[%clk 0:00:03.5]} 52. Ke7 {[%clk 0:00:08.6]}
52... Rd3 {[%clk 0:00:04.4]} 53. a5 {[%clk 0:00:07.8]} 53... Rxg3 {[%clk
0:00:03.7]} 54. a6 {[%clk 0:00:08.3]} 54... Ra3 {[%clk 0:00:03.5]} 55. Kd6
{[%clk 0:00:07.3]} 55... h4 {[%clk 0:00:03.5]} 56. Ra8 {[%clk 0:00:08]} 56...
Kg7 {[%clk 0:00:02.9]} 57. a7 {[%clk 0:00:08.1]} 57... h3 {[%clk 0:00:02.3]} 58.
Kc7 {[%clk 0:00:07.9]} 58... h2 {[%clk 0:00:02.4]} 59. Kb7 {[%clk 0:00:08.3]}
59... h1=Q+ {[%clk 0:00:02.6]} 60. Kb8 {[%clk 0:00:07.8]} 60... Rb3+ {[%clk
0:00:03.1]} 61. Kc8 {[%clk 0:00:08.2]} 61... Qxa8+ {[%clk 0:00:03.3]} 62. Kc7
{[%clk 0:00:08.8]} 62... Qxa7+ {[%clk 0:00:03.8]} 0-1

[Event "*** Titled Tuesday Blitz"]
[Site "Chess.com"]
[Date "2021.03.02"]
[Round "9"]
[White "PushingpawnsNYC"]
[Black "woodhy"]
[Result "0-1"]
[WhiteElo "2312"]
[BlackElo "2466"]
[TimeControl "180+1"]
[EndTime "11:48:42 PST"]
[Termination "woodhy won by resignation"]

1. e4 {[%clk 0:03:00.9]} 1... e6 {[%clk 0:03:00.9]} 2. d4 {[%clk 0:03:00.4]}
2... d5 {[%clk 0:03:01.8]} 3. Bd3 {[%clk 0:03:00.2]} 3... Nf6 {[%clk 0:02:58.2]}
4. e5 {[%clk 0:02:59.7]} 4... Nfd7 {[%clk 0:02:58.8]} 5. f4 {[%clk 0:03:00]}
5... c5 {[%clk 0:02:59.7]} 6. c3 {[%clk 0:03:00.3]} 6... Nc6 {[%clk 0:03:00.2]}
7. Nf3 {[%clk 0:02:59.9]} 7... Qb6 {[%clk 0:03:00.2]} 8. Bc2 {[%clk 0:02:58.3]}
8... cxd4 {[%clk 0:02:58.3]} 9. cxd4 {[%clk 0:02:56.7]} 9... Nb4 {[%clk
0:02:58.8]} 10. Nc3 {[%clk 0:02:56.8]} 10... Nxc2+ {[%clk 0:02:57.8]} 11. Qxc2
{[%clk 0:02:57.7]} 11... Nb8 {[%clk 0:02:51.4]} 12. O-O {[%clk 0:02:51.3]} 12...
Bd7 {[%clk 0:02:48.5]} 13. f5 {[%clk 0:02:43.8]} 13... Nc6 {[%clk 0:02:46.8]}
14. fxe6 {[%clk 0:02:43.5]} 14... Bxe6 {[%clk 0:02:45.2]} 15. Be3 {[%clk
0:02:41.6]} 15... Be7 {[%clk 0:02:44.7]} 16. Rad1 {[%clk 0:02:22.2]} 16... O-O
{[%clk 0:02:42.3]} 17. Ne2 {[%clk 0:02:18.4]} 17... Rac8 {[%clk 0:02:40.2]} 18.
Qb1 {[%clk 0:02:03.6]} 18... Nb4 {[%clk 0:02:21.2]} 19. Rd2 {[%clk 0:02:01.1]}
19... Rc7 {[%clk 0:02:05.5]} 20. a3 {[%clk 0:01:58.6]} 20... Nc6 {[%clk
0:02:04.9]} 21. Nf4 {[%clk 0:01:52.5]} 21... Na5 {[%clk 0:01:59]} 22. Nxe6
{[%clk 0:01:38.6]} 22... Qxe6 {[%clk 0:01:55]} 23. Bg5 {[%clk 0:01:31.5]} 23...
Nc4 {[%clk 0:01:49.1]} 24. Re2 {[%clk 0:01:29.1]} 24... Qg4 {[%clk 0:01:39.2]}
25. Bxe7 {[%clk 0:01:26]} 25... Rxe7 {[%clk 0:01:40.1]} 26. h3 {[%clk
0:01:13.9]} 26... Qh5 {[%clk 0:01:30.9]} 27. Qd3 {[%clk 0:00:54.8]} 27... h6
{[%clk 0:01:24.2]} 28. Ref2 {[%clk 0:00:49.4]} 28... Rc8 {[%clk 0:01:11.5]} 29.
Nh2 {[%clk 0:00:40.3]} 29... Qg5 {[%clk 0:01:03.7]} 30. Ng4 {[%clk 0:00:27.1]}
30... h5 {[%clk 0:00:42.1]} 31. Rf5 {[%clk 0:00:27]} 31... Qd2 {[%clk
0:00:40.3]} 32. Nf6+ {[%clk 0:00:22.9]} 32... gxf6 {[%clk 0:00:33.9]} 33. Qg3+
{[%clk 0:00:22.9]} 33... Kf8 {[%clk 0:00:31.7]} 34. R1f2 {[%clk 0:00:20.1]}
34... Qh6 {[%clk 0:00:15.5]} 35. Rxf6 {[%clk 0:00:19.6]} 35... Qe3 {[%clk
0:00:13.8]} 36. Qg6 {[%clk 0:00:18]} 36... Nxe5 {[%clk 0:00:11.1]} 37. dxe5
{[%clk 0:00:17.3]} 37... Rc1+ {[%clk 0:00:10.8]} 38. Kh2 {[%clk 0:00:17.2]}
38... Qxe5+ {[%clk 0:00:10.9]} 39. Qg3 {[%clk 0:00:15.5]} 39... Rh1+ {[%clk
0:00:09]} 40. Kxh1 {[%clk 0:00:14.7]} 40... Qxg3 {[%clk 0:00:09.9]} 41. Rf1
{[%clk 0:00:13.4]} 41... Re2 {[%clk 0:00:08.9]} 42. Rxf7+ {[%clk 0:00:13.7]}
42... Kg8 {[%clk 0:00:08.7]} 43. Rf8+ {[%clk 0:00:13.3]} 43... Kh7 {[%clk
0:00:06.8]} 44. R1f7+ {[%clk 0:00:13.7]} 44... Kg6 {[%clk 0:00:05.5]} 45. Rg8+
{[%clk 0:00:13.6]} 45... Kxf7 {[%clk 0:00:05.7]} 46. Rxg3 {[%clk 0:00:14.5]}
46... Rxb2 {[%clk 0:00:05.8]} 47. Rf3+ {[%clk 0:00:15]} 47... Ke6 {[%clk
0:00:05.5]} 48. Rg3 {[%clk 0:00:15.2]} 48... d4 {[%clk 0:00:05.4]} 49. Rg6+
{[%clk 0:00:15.4]} 49... Kf5 {[%clk 0:00:05.6]} 50. Rg8 {[%clk 0:00:15.5]} 50...
Ke4 {[%clk 0:00:05.8]} 51. Re8+ {[%clk 0:00:15.3]} 51... Kd3 {[%clk 0:00:04.8]}
52. Kh2 {[%clk 0:00:15.9]} 52... Kc3 {[%clk 0:00:04.5]} 53. Rc8+ {[%clk
0:00:16.1]} 53... Kd2 {[%clk 0:00:04.4]} 54. Rc7 {[%clk 0:00:16.8]} 54... d3
{[%clk 0:00:05.3]} 55. Rf7 {[%clk 0:00:16.2]} 55... Ke1 {[%clk 0:00:04.8]} 56.
Re7+ {[%clk 0:00:16.4]} 56... Kd1 {[%clk 0:00:04.8]} 57. Re5 {[%clk 0:00:14.4]}
57... d2 {[%clk 0:00:05.2]} 58. Rxh5 {[%clk 0:00:14.9]} 58... Rc2 {[%clk
0:00:05.2]} 59. Re5 {[%clk 0:00:15.1]} 59... Kc1 {[%clk 0:00:05.5]} 60. Rd5
{[%clk 0:00:14.4]} 60... d1=Q {[%clk 0:00:06.4]} 61. Rxd1+ {[%clk 0:00:14.8]}
61... Kxd1 {[%clk 0:00:06.6]} 62. Kg3 {[%clk 0:00:15.6]} 62... Ke2 {[%clk
0:00:07.2]} 63. Kg4 {[%clk 0:00:16.2]} 63... Kf1 {[%clk 0:00:07.5]} 64. g3
{[%clk 0:00:17.1]} 64... Kg2 {[%clk 0:00:07.8]} 65. h4 {[%clk 0:00:17.5]} 65...
Rc4+ {[%clk 0:00:08.2]} 66. Kf5 {[%clk 0:00:17.5]} 66... Kxg3 {[%clk 0:00:09.1]}
67. h5 {[%clk 0:00:18.3]} 67... Kh4 {[%clk 0:00:07.2]} 68. h6 {[%clk 0:00:18.6]}
68... Rc6 {[%clk 0:00:06.7]} 69. h7 {[%clk 0:00:18.3]} 69... Rh6 {[%clk
0:00:07.6]} 70. a4 {[%clk 0:00:18.3]} 70... Rxh7 {[%clk 0:00:07.6]} 71. Ke5
{[%clk 0:00:19.2]} 71... Rh6 {[%clk 0:00:07.3]} 72. Kd5 {[%clk 0:00:20.1]} 72...
Ra6 {[%clk 0:00:07.6]} 73. Kc4 {[%clk 0:00:20]} 73... Rxa4+ {[%clk 0:00:08.5]}
74. Kb5 {[%clk 0:00:20.9]} 74... Ra6 {[%clk 0:00:06.9]} 75. Kc5 {[%clk
0:00:21.1]} 75... Rb6 {[%clk 0:00:07]} 0-1